[Event "Arsen Yeghiazaryan Memorial 2022"]
[Site "Yerevan"]
[Date "2022.07.06"]
[Round "6.2"]
[White "Piliposyan, Robert"]
[Black "Quparadze, Giga"]
[Result "1/2-1/2"]
[ECO "E11"]
[WhiteElo "2287"]
[BlackElo "2482"]
[Annotator "TA"]
[PlyCount "220"]
[EventDate "2022.06.30"]
[EventType "tourn"]
[EventCountry "ARM"]
[SourceTitle "playchess.com"]
[Source "ChessBase"]
[SourceQuality "1"]
[TimeControl "40/5400+30:1800+30"]

{[%evp 10,220,29,18,27,23,29,25,29,8,12,12,12,12,8,8,8,11,9,6,12,4,6,4,5,0,0,2,8,10,8,0,0,10,13,0,3,0,14,0,18,0,20,0,0,0,5,3,21,0,0,0,0,0,9,0,0,0,0,0,33,0,0,0,0,0,0,0,0,0,0,0,0,0,0,0,0,0,0,0,0,0,0,0,0,-2,-2,-3,-2,-2,0,0,0,0,0,0,0,0,0,0,0,0,0,0,0,0,0,0,0,0,0,0,55,55,55,55,55,55,55,55,55,55,55,55,55,55,55,55,88,88,88,88,88,88,88,88,91,88,88,85,85,85,85,85,85,85,85,85,85,85,85,85,85,85,85,85,85,85,85,85,85,85,85,85,85,85,85,85,85,85,85,85,85,85,85,85,85,85,85,8,8,8,8,8,8,15,96,96,96,96,96,96,96,96,96,96,96,96,96,96,96,118,104,87,117,97,100,115,992,0,0,243,0]} 1. d4 {[%emt 0:00:02]} Nf6 {[%emt 0:00:06]} 2. c4 {[%emt 0:00:03]} e6 {[%emt 0:00:04]} 3. Nf3 {[%emt 0:00:03]} Bb4+ {[%emt 0:00:06]} 4. Bd2 {[%emt 0:00:04]} a5 {[%emt 0:00:04]} 5. a3 {[%emt 0:00:29]} Bxd2+ {[%emt 0:00:07]} 6. Qxd2 {[%emt 0:00:04]} b6 {[%emt 0:00:50] E11: Bogo-Indian.} 7. Nc3 {[%emt 0:00:20]} Bb7 {[%emt 0:00:06]} 8. e3 {[%emt 0:03:52]} O-O {[%emt 0:00:07] White has an edge.} 9. Be2 {[%emt 0:05:59]} Ne4 {[%emt 0:00:25]} 10. Nxe4 {[%emt 0:01:01]} Bxe4 {[%emt 0:00:06]} 11. O-O {[%emt 0:00:04]} d6 {[%emt 0:00:03] [#]} 12. b4 $146 {[%emt 0:07:07]} ({Predecessor:} 12. Qc3 Nd7 13. Nd2 Bb7 14. f4 f5 15. Bf3 Bxf3 16. Nxf3 Nf6 17. Rae1 Qe8 18. Nd2 {½-½ (31) Malmstroem,J (1778)-Koutsomichalis,M ICCF email 2017}) 12... Nd7 {[%emt 0:00:18]} 13. Qc3 {[%emt 0:06:18]} Qe7 {[%emt 0:00:11]} 14. Nd2 {[%emt 0:01:41]} Bb7 {[%emt 0:00:05]} 15. Bf3 {[%emt 0:10:20]} Bxf3 16. Nxf3 {[%emt 0:00:02]} Nf6 {[%emt 0:00:15]} 17. Qc2 {[%emt 0:02:42]} Qd7 {[%emt 0:00:12]} 18. b5 {[%emt 0:02:15]} c6 {[%emt 0:00:08]} 19. bxc6 {[%emt 0:05:14]} Qxc6 {[%emt 0:00:05]} 20. Rab1 {[%emt 0:00:38]} Rfc8 {[%emt 0:00:08]} 21. Rfc1 {[%emt 0:00:19]} h6 {[%emt 0:00:20]} 22. h3 {[%emt 0:07:39]} Rab8 {[%emt 0:00:12]} 23. Rb5 {[%emt 0:01:13]} Qe8 {[%emt 0:03:13]} 24. Qb2 {[%emt 0:02:08]} Nd7 {[%emt 0:00:07]} 25. Nd2 {[%emt 0:07:02]} Rc7 {[%emt 0:01:57]} 26. Rb3 {[%emt 0:05:48]} Rbc8 {[%emt 0:00:08]} 27. Rbc3 {[%emt 0:00:59]} Qe7 {[%emt 0:00:09]} 28. Qb5 {[%emt 0:00:55]} e5 {[%emt 0:00:55]} 29. Qd5 {[%emt 0:08:27]} Nf6 {[%emt 0:00:16]} 30. Qb5 {[%emt 0:00:12]} Rc6 {[%emt 0:02:32]} 31. Nf3 {[%emt 0:05:53][%cal Rd4e5]} Qc7 {[%emt 0:02:58]} 32. dxe5 {[%emt 0:02:40]} Ne4 {[%emt 0:00:06]} 33. Rb3 {[%emt 0:03:29]} d5 {[%emt 0:00:28]} (33... Nc5 34. exd6 Rxd6 35. Rbb1 $14) 34. Rb2 {[%emt 0:04:57]} (34. Qxd5 Nc5 35. Qd1 Nxb3 36. Qxb3 Rc5 $17) 34... dxc4 {[%emt 0:02:14]} 35. Nd4 {[%emt 0:01:46]} (35. Qd5 $5 {[%cal Rd5e4]} c3 36. Rb5 $14) 35... Rc5 {[%emt 0:00:45]} 36. Qxb6 {[%emt 0:00:19]} Qxe5 {[%emt 0:00:11]} 37. Rb5 {[%emt 0:01:06]} Rxb5 {[%emt 0:01:14]} 38. Qxb5 {[%emt 0:00:06]} Rc5 {[%emt 0:00:07]} 39. Qb1 {[%emt 0:02:57]} f5 {[%emt 0:01:03]} 40. Qa2 {[%emt 0:00:00]} Qd5 {[%emt 0:00:00]} 41. Qa1 {[%emt 0:09:03]} Rc8 {[%emt 0:02:45]} 42. a4 {[%emt 0:07:17]} f4 {[%emt 0:01:19]} 43. f3 {[%emt 0:03:34]} Ng3 {[%emt 0:03:43]} 44. Kh2 $1 {[%emt 0:00:25]} Qe5 {[%emt 0:00:18]} 45. exf4 {[%emt 0:02:00]} Qxf4 {[%emt 0:00:11]} 46. Ne6 {[%emt 0:00:06][%csl Ge6,LRf4,LRg7][%cal Ra1g7] [#]} Nf1+ {[%emt 0:00:09]} 47. Kg1 {[%emt 0:00:01][%csl Ge6][%cal Ra1g7]} Qe3+ {[%emt 0:00:13]} 48. Kxf1 {[%emt 0:00:05][%csl Ge6][%cal Ra1g7] Dancing on a razor blade.} Qxe6 $11 {[%emt 0:00:03][%mdl 4096] Endgame KQR-KQR} 49. Qc3 {[%emt 0:00:20]} Qd7 {[%emt 0:01:20]} 50. Rb1 {[%emt 0:02:22]} Kh7 {[%emt 0:00:54]} (50... Qxa4 51. Rb7) 51. Qc2+ {[%emt 0:05:45]} Kh8 {[%emt 0:00:13]} 52. Qc3 {[%emt 0:00:47]} Qd5 {[%emt 0:02:29]} 53. Rb5 {[%emt 0:01:45]} Qd1+ {[%emt 0:00:06]} 54. Kf2 $1 {[%emt 0:00:04]} ({Reject} 54. Qe1 Qd3+ 55. Qe2 Qg6 $17) 54... Re8 {[%emt 0:00:09]} 55. Kg3 {[%emt 0:02:08]} ({But not} 55. Rb7 $2 Re2+ 56. Kg3 Qd6+ 57. f4 Qg6+ 58. Kh4 Qxg2 59. Rxg7 Qxg7 $19) 55... Qd6+ {[%emt 0:04:18]} 56. Kf2 {[%emt 0:00:16]} Qe7 {[%emt 0:00:37]} 57. Kg3 {[%emt 0:01:43]} Qc7+ {[%emt 0:09:01]} 58. Kf2 {[%emt 0:00:05]} Qa7+ {[%emt 0:00:05]} 59. Kf1 {[%emt 0:01:43]} Qd7 {[%emt 0:00:20] aiming for ...Qd1+.} 60. Kf2 {[%emt 0:00:40]} Qe6 {[%emt 0:00:18]} (60... Qe7 $11) 61. Rb7 {[%emt 0:00:45][%csl Gb7][%cal Rc3g7]} Qe2+ {[%emt 0:00:54]} 62. Kg3 {[%emt 0:00:12][%csl Gb7][%cal Rc3g7]} Re5 {[%emt 0:01:54] ...Rg5+ is the strong threat.} 63. h4 $1 {[%emt 0:00:22] Prevents Rg5+.} ({Don't go for} 63. Rb5 $2 Re6 64. Rb8+ Kh7 $19) 63... Qe1+ {[%emt 0:04:19]} 64. Qxe1 {[%emt 0:00:03]} Rxe1 $14 {[%emt 0:00:03] KR-KR} 65. Rc7 {[%emt 0:00:08]} Rc1 {[%emt 0:00:08]} 66. Rc5 {[%emt 0:00:05]} c3 {[%emt 0:00:05]} 67. Rxa5 {[%emt 0:00:04]} Ra1 {[%emt 0:00:05]} 68. Rc5 {[%emt 0:00:04]} Ra3 {[%emt 0:00:07]} 69. h5 {[%emt 0:00:14]} Rxa4 {[%emt 0:01:26]} 70. Rxc3 {[%emt 0:00:06]} Ra5 {[%emt 0:00:04]} 71. Kh4 {[%emt 0:00:04]} Kg8 {[%emt 0:00:07]} 72. Rc7 {[%emt 0:00:04]} Rg5 {[%emt 0:00:06]} 73. g3 {[%emt 0:00:28]} Rf5 {[%emt 0:00:07]} 74. f4 {[%emt 0:00:05]} Ra5 {[%emt 0:00:05]} 75. Kg4 {[%emt 0:01:20]} Kf8 {[%emt 0:00:05]} 76. Rb7 {[%emt 0:00:35]} Rc5 {[%emt 0:00:13]} 77. Kh4 {[%emt 0:00:12]} Rf5 {[%emt 0:00:10]} 78. Ra7 {[%emt 0:00:15] White is more active.} Rb5 {[%emt 0:00:05]} 79. g4 {[%emt 0:00:46]} Rb4 {[%emt 0:00:06]} 80. Kg3 {[%emt 0:00:21]} Rb3+ {[%emt 0:00:05]} 81. Kf2 {[%emt 0:00:08]} Rc3 {[%emt 0:00:06]} 82. Ra5 {[%emt 0:00:33]} Kf7 {[%emt 0:00:08]} 83. Re5 {[%emt 0:00:04]} Ra3 {[%emt 0:00:13]} 84. Re3 {[%emt 0:00:04]} Ra4 {[%emt 0:00:10]} 85. Kf3 {[%emt 0:00:10]} Rb4 {[%emt 0:00:06]} 86. Rc3 {[%emt 0:00:14]} Ra4 {[%emt 0:00:04]} 87. Rc7+ {[%emt 0:00:10]} Kf6 {[%emt 0:00:07]} 88. Rc6+ {[%emt 0:00:27]} Kf7 {[%emt 0:00:05]} 89. Rd6 {[%emt 0:00:05]} Rb4 {[%emt 0:00:03]} 90. Ke3 {[%emt 0:00:16]} Ra4 {[%emt 0:00:44]} 91. Rd4 {[%emt 0:00:06]} Ra6 {[%emt 0:00:04]} 92. Ke4 {[%emt 0:00:08]} Re6+ {[%emt 0:00:06]} 93. Kf3 {[%emt 0:00:25]} Re1 {[%emt 0:00:06]} 94. g5 {[%emt 0:00:59]} (94. Ra4 $16) 94... hxg5 $11 {[%emt 0:00:06]} 95. fxg5 {[%emt 0:00:03][%cal Bf4g5,Bg5g6][%mdl 32]} Rf1+ $1 {[%emt 0:01:09]} 96. Kg4 {[%emt 0:00:18]} Rg1+ {[%emt 0:00:07]} 97. Kf5 {[%emt 0:00:03] Hoping for Rd7+.} Rf1+ {[%emt 0:00:08]} (97... g6+ $1 $11 {remains equal.} 98. hxg6+ Kg7) 98. Rf4 $16 {[%emt 0:00:13]} Ra1 {[%emt 0:01:38][%cal Og7g6]} 99. g6+ {[%emt 0:00:26]} Kg8 {[%emt 0:00:07]} 100. Rd4 {[%emt 0:00:30][%cal Rd4d8]} Ra5+ {[%emt 0:00:07]} 101. Ke6 {[%emt 0:00:12][%cal Rd4d8]} Ra6+ {[%emt 0:00:05]} 102. Kd7 {[%emt 0:00:37]} Ra7+ {[%emt 0:00:26]} 103. Kc6 {[%emt 0:00:39][%cal Rd4d8]} Ra8 {[%emt 0:00:06] Inhibits Rd8+.} 104. Kc7 {[%emt 0:00:10]} Rf8 {[%emt 0:00:06]} 105. Rd8 {[%emt 0:00:05]} Rxd8 {[%emt 0:00:04][%mdl 64] [#] Remove Defender} 106. Kxd8 {[%emt 0:00:03]} Kh8 {[%emt 0:00:06]} 107. Ke8 {[%emt 0:00:04]} Kg8 {[%emt 0:00:06]} 108. Ke7 $2 {[%emt 0:00:02][%mdl 8192]} (108. Kd7 $16) 108... Kh8 $18 {[%emt 0:00:05]} 109. h6 $2 {[%emt 0:00:03]} (109. Kd7 $18 Kg8 110. Ke6) 109... Kg8 $11 {[%emt 0:00:04]} 110. h7+ {[%emt 0:00:02]} Kh8 {[%emt 0:00:04] Weighted Error Value: White=0.03 (flawless) /Black=0.05 (flawless)} 1/2-1/2

[Event "Arsen Yeghiazaryan Memorial 2022"]
[Site "Yerevan"]
[Date "2022.07.06"]
[Round "6.3"]
[White "Nazari, Arad"]
[Black "Atakhan, Abtin"]
[Result "1/2-1/2"]
[WhiteElo "2401"]
[BlackElo "2344"]
[Annotator "TA"]
[PlyCount "42"]
[EventDate "2022.06.30"]
[EventType "tourn"]
[EventCountry "ARM"]
[SourceTitle "playchess.com"]
[Source "ChessBase"]
[SourceQuality "1"]
[TimeControl "40/5400+30:1800+30"]

{[%evp 17,19,0,26,-129]} 1. e4 {[%emt 0:07:35]} c5 {[%emt 0:00:23]} 2. Nf3 {[%emt 0:00:03]} d6 {[%emt 0:00:06]} 3. d4 {[%emt 0:00:04]} cxd4 {[%emt 0:00:05]} 4. Nxd4 {[%emt 0:00:04]} Nf6 {[%emt 0:00:05]} 5. Nc3 {[%emt 0:00:06]} a6 {[%emt 0:00:05]} 6. Be3 {[%emt 0:00:03]} Ng4 {[%emt 0:00:07]} 7. Bc1 {[%emt 0:00:02]} Nf6 {[%emt 0:00:06]} 8. Be3 {[%emt 0:00:02]} Ng4 {[%emt 0:00:06]} 9. Bc1 {[%emt 0:00:04]} Nf6 {[%emt 0:00:04]} 10. Nb1 $2 {[%emt 0:00:35] [#] 10.a4 is setting a new trend. B90: Sicilian Najdorf: Unusual White 6th moves, 6 Be3 Ng4 and 6 Be3 e5.} (10. Bg5 $11) {Predecessor:} 10... e6 $146 11. b4 Be7 12. Ne2 O-O 13. Bd2 Nbd7 14. b5 axb5 15. a4 bxa4 16. Ba5 Qxa5+ 17. c3 b5 18. Nc1 Bb7 19. Nd3 Bxe4 20. Nb2 Bxb1 21. Rxb1 Qxc3+ {½-½ (21) Tomilova,E (2256)-Truskavetsky,A (2371) Kerch 2021} 1/2-1/2

[Event "Arsen Yeghiazaryan Memorial 2022"]
[Site "Yerevan"]
[Date "2022.07.06"]
[Round "6.4"]
[White "Morchiashvili, Bachana"]
[Black "Alaverdyan, Gevorg"]
[Result "1/2-1/2"]
[ECO "E92"]
[WhiteElo "2305"]
[BlackElo "2336"]
[Annotator "TA"]
[PlyCount "86"]
[EventDate "2022.06.30"]
[EventType "tourn"]
[EventCountry "ARM"]
[SourceTitle "playchess.com"]
[Source "ChessBase"]
[SourceQuality "1"]
[TimeControl "40/5400+30:1800+30"]

{[%evp 22,86,69,40,54,30,44,34,43,0,0,0,8,6,27,24,40,39,96,63,75,76,95,79,145,142,142,160,239,254,249,262,261,279,272,152,142,25,38,19,75,75,253,270,377,370,313,261,216,252,236,63,42,0,0,0,0,0,0,0,0,0,0,0,0,0,0]} 1. d4 {[%emt 0:00:02]} Nf6 {[%emt 0:00:08]} 2. c4 {[%emt 0:00:07]} g6 {[%emt 0:00:04]} 3. Nc3 {[%emt 0:00:05]} Bg7 {[%emt 0:00:04]} 4. e4 {[%emt 0:00:05]} d6 {[%emt 0:00:04]} 5. Nf3 {[%emt 0:00:05]} O-O {[%emt 0:00:10]} 6. h3 {[%emt 0:00:04]} e5 {[%emt 0:04:28]} 7. d5 {[%emt 0:00:10]} Na6 {[%emt 0:00:29]} 8. Bg5 {[%emt 0:00:18]} h6 {[%emt 0:00:05]} 9. Be3 {[%emt 0:00:10]} Nc5 {[%emt 0:01:21]} 10. Nd2 {[%emt 0:00:06]} a5 {[%emt 0:01:05]} 11. Be2 {[%emt 0:00:22]} Nh7 {[%emt 0:02:10] 11...c6 is the modern continuation.} 12. h4 {[%emt 0:00:11]} h5 {[%emt 0:09:08] has lost popularity (12...f5). E92: King's Indian: Classical: 6 Be2 e5: 7 dxe5, 7 Be3 and Petrosian System without 7...Nbd7.} 13. Qc2 {[%emt 0:14:45]} b6 {[%emt 0:04:03] [#]} 14. O-O-O $146 {[%emt 0:01:45]} ({Predecessor:} 14. b3 f5 15. f3 Nf6 16. Bg5 Qe8 17. Be3 Kh7 18. a3 Qf7 19. Rb1 fxe4 20. Bxc5 bxc5 21. Ndxe4 Nxe4 22. Nxe4 {½-½ (46) Margvelashvili,G (2459)-Wan,Y (2327) Acri 2006}) 14... f5 {White is slightly better.} 15. exf5 {[%emt 0:02:21]} Bxf5 {[%emt 0:18:46]} 16. Nde4 {[%emt 0:00:19]} Nf6 {[%emt 0:00:39]} 17. Bxc5 {[%emt 0:02:26]} bxc5 {[%emt 0:00:29]} (17... dxc5 18. Bd3 $14) 18. Bd3 {[%emt 0:02:03]} Bh6+ {[%emt 0:07:20]} 19. Kb1 {[%emt 0:00:40]} Ng4 {[%emt 0:00:08]} ({Black should try} 19... Rb8 $14) 20. Rde1 {[%emt 0:02:00]} Rb8 {[%emt 0:05:49]} 21. f3 {[%emt 0:02:18][%cal Bf2f3,Bf3g4,Bg4g5][%mdl 32]} Ne3 {[%emt 0:01:40]} 22. Qf2 {[%emt 0:03:13]} Bxe4 {[%emt 0:00:10]} ({Black should play} 22... Ng4 23. fxg4 Bxe4) 23. Nxe4 $16 {[%emt 0:02:45]} Nf5 {[%emt 0:00:03]} 24. g4 $1 {[%emt 0:07:02]} hxg4 {[%emt 0:07:11]} (24... Nd4 $16) 25. fxg4 $18 {[%emt 0:01:03]} Nd4 {[%emt 0:00:03]} 26. Qg2 {[%emt 0:00:40] aiming for g5.} Rf3 {[%emt 0:03:17]} 27. g5 {[%emt 0:02:01]} Bg7 {[%emt 0:02:59] [#]} 28. Rd1 {[%emt 0:04:31]} (28. h5 $1 $18) 28... a4 $16 {[%emt 0:13:27] [#]} 29. Bc2 {[%emt 0:11:30]} (29. Rh3 $1 $16 {[%cal Rh3f3]} Qf8 30. h5) 29... Rf4 $11 {[%emt 0:07:07]} 30. h5 {[%emt 0:05:06][%cal Bh4h5,Bh5h6][%mdl 32] Hoping for Bd3.} Nxc2 {[%emt 0:00:04]} ({Weaker is} 30... a3 31. b3 $16) (30... Qc8 $11) 31. Qxc2 $16 {[%emt 0:02:18]} Qc8 $2 {[%emt 0:01:12]} (31... a3 $16 {keeps fighting.} 32. b3 Qd7) 32. h6 $18 {[%emt 0:18:49]} ({Inferior is} 32. hxg6 Qf5 33. Rhe1 a3 $11) 32... Bf8 {[%emt 0:00:31]} 33. Nf6+ {[%emt 0:11:59]} Kf7 {[%emt 0:00:01]} 34. Rdf1 {[%emt 0:02:18][%cal Of6h5] Black must now prevent Nh5!} (34. Qxa4 Be7 $16) 34... Qf5 {[%emt 0:00:03] [#]} 35. Rxf4 {[%emt 0:01:05]} Qxf4 {[%emt 0:00:10]} 36. Qxa4 $40 {[%emt 0:00:55][%mdl 128] White has some attack. Dancing on a razor blade.} (36. Nd7 $18 Qf3 37. Rg1 (37. Nxb8 Qxh1+ 38. Qc1 Qxc1+ 39. Kxc1 Be7 $17)) 36... Be7 $14 {[%emt 0:04:21]} 37. Qd7 {[%emt 0:01:56] Threatening mate with Qe6+.} Rxb2+ $1 {[%emt 0:00:42][%mdl 64] Decoy. The position is equal.} 38. Kxb2 {[%emt 0:01:00][%csl Gf6][%cal Rd7e8]} Qd2+ {[%emt 0:00:11]} 39. Kb3 {[%emt 0:00:23][%csl Gf6][%cal Rd7e8]} Qd3+ {[%emt 0:00:16]} 40. Kb2 {[%emt 0:00:00][%csl Gf6][%cal Rd7e8,Bb3b2,Bb2a1,Ba1b1,Bb1c1][%mdl 32]} Qd2+ {[%emt 0:00:00]} 41. Ka1 {[%emt 0:01:44][%csl Gf6][%cal Rd7e8]} Qc3+ {[%emt 0:00:09]} 42. Kb1 {[%emt 0:00:02][%csl Gf6][%cal Rd7e8]} Qd3+ {[%emt 0:00:05]} 43. Kc1 {[%emt 0:00:04][%csl Gf6][%cal Rd7e8]} Qc3+ {[%emt 0:00:03] Black escapes into a draw.  Weighted Error Value: White=0.26 (precise) /Black=0.24 (precise)} 1/2-1/2

[Event "Arsen Yeghiazaryan Memorial 2022"]
[Site "Yerevan"]
[Date "2022.07.06"]
[Round "6.5"]
[White "Hayrapetyan, Hovik"]
[Black "Agasarov, Benik"]
[Result "1-0"]
[ECO "D02"]
[WhiteElo "2481"]
[BlackElo "2225"]
[Annotator "TA"]
[PlyCount "43"]
[EventDate "2022.06.30"]
[EventType "tourn"]
[EventCountry "ARM"]
[SourceTitle "playchess.com"]
[Source "ChessBase"]
[SourceQuality "1"]
[TimeControl "40/5400+30:1800+30"]

{[%evp 9,43,7,14,13,20,1,29,29,71,73,91,101,116,114,201,203,208,171,291,267,275,278,351,340,357,352,417,437,422,425,400,397,420,416,470,448]} 1. d4 {[%emt 0:00:11]} Nf6 {[%emt 0:00:07]} 2. Nf3 {[%emt 0:01:03]} d5 {[%emt 0:00:54]} 3. Bf4 {[%emt 0:01:23]} c5 {[%emt 0:01:16]} 4. c3 {[%emt 0:04:07]} Nc6 {[%emt 0:02:46]} 5. e3 {[%emt 0:05:22]} Bg4 {[%emt 0:01:43][%cal Bc8g4,Bg4h5,Bh5g6][%mdl 32]} 6. h3 {[%emt 0:04:26] D02: 1 d4 d5 2 Nf3 sidelines, including 2...Nf6 3 g3 and 2...Nf6 3 Bf4.} Bh5 {[%emt 0:01:10]} 7. g4 {[%emt 0:01:23][%cal Bg2g4,Bg4g5][%mdl 32]} Bg6 {[%emt 0:00:07]} 8. dxc5 {[%emt 0:00:04] [#] White has an edge.} h5 $146 {[%emt 0:19:43]} ({Predecessor:} 8... a5 9. Bb5 Be4 10. Nbd2 Nd7 11. Nxe4 dxe4 12. Ne5 Ndxe5 13. Bxe5 Qxd1+ 14. Rxd1 e6 {1-0 (34) Mikadze,M (2329)-Motycakova,M (2087) Gaziantep 2012}) 9. g5 {[%emt 0:01:17]} Nd7 {[%emt 0:00:07] [#]} 10. b4 $1 {[%emt 0:12:58]} ({Reject} 10. Qxd5 e6 11. Qd1 Nxc5 $11) 10... e5 {[%emt 0:00:56]} 11. Bh2 {[%emt 0:00:11]} d4 {[%emt 0:20:50]} (11... e4 $16 {might work better.}) 12. exd4 $18 {[%emt 0:06:48]} exd4 {[%emt 0:02:50]} 13. Nxd4 {[%emt 0:00:51]} ({Don't play} 13. Qe2+ $6 Be7 $14) 13... Be7 {[%emt 0:04:59]} (13... Qxg5 {keeps fighting.} 14. Rg1 Qe7+ 15. Be2 (15. Qe2 Qxe2+ 16. Kxe2 Be7 $16) 15... Nxd4 16. Qxd4 Rd8) 14. Nxc6 {[%emt 0:02:04]} bxc6 {[%emt 0:00:05]} 15. Bg2 {[%emt 0:00:04] Against Be4} Qc8 {[%emt 0:02:24]} 16. O-O {[%emt 0:02:04]} O-O {[%emt 0:00:30]} 17. h4 {[%emt 0:00:25]} a5 {[%emt 0:03:00]} 18. Re1 {[%emt 0:00:23]} Re8 {[%emt 0:00:10]} 19. Bh3 {[%emt 0:00:50]} Ra7 {[%emt 0:00:05]} 20. Nd2 {[%emt 0:00:53]} axb4 {[%emt 0:00:21]} 21. cxb4 {[%emt 0:00:27]} Qa8 {[%emt 0:00:19]} 22. Nc4 {[%emt 0:00:35] Black got outplayed after the opening.  Weighted Error Value: White=0.05 (flawless) /Black=0.35} 1-0

[Event "Arsen Yeghiazaryan Memorial 2022"]
[Site "Yerevan"]
[Date "2022.07.07"]
[Round "7.1"]
[White "Agasarov, Benik"]
[Black "Piliposyan, Robert"]
[Result "1/2-1/2"]
[ECO "E21"]
[WhiteElo "2225"]
[BlackElo "2287"]
[Annotator "RC"]
[PlyCount "41"]
[EventDate "2022.06.30"]
[EventType "tourn"]
[EventCountry "ARM"]
[SourceTitle "playchess.com"]
[Source "ChessBase"]
[SourceQuality "1"]
[TimeControl "40/5400+30:1800+30"]

1. d4 {[%emt 0:00:04]} Nf6 {[%emt 0:00:09]} 2. c4 {[%emt 0:00:09]} e6 {[%emt 0:00:04]} 3. Nc3 {[%emt 0:00:55]} Bb4 {[%emt 0:00:18]} 4. Nf3 {[%emt 0:00:06]} b6 {[%emt 0:00:10]} 5. Bd2 {[%emt 0:00:11]} Bb7 {[%emt 0:09:45]} 6. g3 {[%emt 0:00:09]} c5 {[%emt 0:08:19]} 7. dxc5 {[%emt 0:14:04]} Bxc5 {[%emt 0:01:55]} 8. Bg2 {[%emt 0:01:00]} Ne4 {[%emt 0:08:25]} 9. Nxe4 {[%emt 0:15:17]} Bxe4 {[%emt 0:00:10]} 10. Bc3 {[%emt 0:00:24]} O-O {[%emt 0:00:44]} 11. b4 {[%emt 0:05:14]} Be7 {[%emt 0:00:16]} 12. O-O {[%emt 0:00:13]} d5 {[%emt 0:11:24]} 13. cxd5 {[%emt 0:06:52]} Qxd5 {[%emt 0:00:34]} 14. Qd4 {[%emt 0:08:55]} Qxd4 {[%emt 0:12:07]} 15. Nxd4 {[%emt 0:00:07]} Bxg2 {[%emt 0:00:09]} 16. Kxg2 {[%emt 0:00:05]} Rc8 {[%emt 0:03:24]} 17. Rac1 {[%emt 0:03:40]} Nc6 {[%emt 0:03:53]} 18. a3 {[%emt 0:10:00]} a5 {[%emt 0:09:31]} 19. Nxc6 {[%emt 0:00:58]} Rxc6 {[%emt 0:00:14]} 20. Bd2 {[%emt 0:00:06]} Rac8 {[%emt 0:08:47]} 21. Rxc6 {[%emt 0:00:21]} 1/2-1/2

[Event "Arsen Yeghiazaryan Memorial 2022"]
[Site "Yerevan"]
[Date "2022.07.07"]
[Round "7.2"]
[White "Atakhan, Abtin"]
[Black "Morchiashvili, Bachana"]
[Result "1-0"]
[ECO "E73"]
[WhiteElo "2344"]
[BlackElo "2305"]
[Annotator "RC"]
[PlyCount "71"]
[EventDate "2022.06.30"]
[EventType "tourn"]
[EventCountry "ARM"]
[SourceTitle "playchess.com"]
[Source "ChessBase"]
[SourceQuality "1"]
[TimeControl "40/5400+30:1800+30"]

1. d4 {[%emt 0:00:36]} Nf6 {[%emt 0:00:06]} 2. c4 {[%emt 0:00:19]} g6 {[%emt 0:00:06]} 3. Nc3 {[%emt 0:00:31]} Bg7 {[%emt 0:00:04]} 4. e4 {[%emt 0:00:16]} d6 {[%emt 0:00:03]} 5. Be2 {[%emt 0:00:25]} O-O {[%emt 0:00:12]} 6. Be3 {[%emt 0:00:31]} c5 {[%emt 0:00:11]} 7. d5 {[%emt 0:00:11]} e6 {[%emt 0:00:51]} 8. Nf3 {[%emt 0:02:16]} exd5 {[%emt 0:00:10]} 9. cxd5 {[%emt 0:00:19]} Bg4 {[%emt 0:00:30]} 10. Nd2 {[%emt 0:00:28]} Bxe2 {[%emt 0:00:20]} 11. Qxe2 {[%emt 0:00:10]} Na6 {[%emt 0:02:41]} 12. O-O {[%emt 0:00:26]} Nc7 {[%emt 0:00:35]} 13. a4 {[%emt 0:00:15]} Re8 {[%emt 0:00:50]} 14. Kh1 {[%emt 0:00:09]} a6 {[%emt 0:02:56]} 15. a5 {[%emt 0:00:35]} Re7 {[%emt 0:28:31]} 16. Qd3 {[%emt 0:13:16]} h6 {[%emt 0:04:20]} 17. Nc4 {[%emt 0:04:27]} Nb5 {[%emt 0:04:16]} 18. e5 {[%emt 0:12:59]} dxe5 {[%emt 0:03:12]} 19. Bxc5 {[%emt 0:01:07]} Rd7 {[%emt 0:00:37]} 20. Nxe5 {[%emt 0:23:09]} Nxc3 {[%emt 0:03:09]} 21. Bb6 {[%emt 0:00:07]} Rxd5 {[%emt 0:09:57]} 22. Bxd8 {[%emt 0:00:37]} Nfe4 {[%emt 0:10:03]} 23. Qf3 {[%emt 0:04:01]} Rxe5 {[%emt 0:00:41]} 24. Bc7 {[%emt 0:03:08]} Rf5 {[%emt 0:05:37]} 25. Qe3 {[%emt 0:00:39]} Nxf2+ {[%emt 0:02:45]} 26. Rxf2 {[%emt 0:01:47]} Nd5 {[%emt 0:00:03]} 27. Qd2 {[%emt 0:01:52]} Nxc7 {[%emt 0:02:47]} 28. Rxf5 {[%emt 0:00:07]} gxf5 {[%emt 0:00:02]} 29. Qd7 {[%emt 0:00:10]} Bxb2 {[%emt 0:03:06]} 30. Rb1 {[%emt 0:00:10]} Be5 {[%emt 0:00:09]} 31. Rxb7 {[%emt 0:00:12]} Rf8 {[%emt 0:00:21]} 32. Rxc7 {[%emt 0:04:09]} Bxc7 {[%emt 0:00:02]} 33. Qxc7 {[%emt 0:00:07]} Re8 {[%emt 0:00:06]} 34. g3 {[%emt 0:00:05]} Re6 {[%emt 0:00:08]} 35. Qf4 {[%emt 0:00:28]} Rf6 {[%emt 0:00:25]} 36. g4 {[%emt 0:00:28]} 1-0